Cogmind - Beta 12 @@@ ROGUE MODE // 2024.01.12 @ 15:11:57 Player: puppuppit Result: Destroyed by S-10 Pest with Light Assault Rifle Performance ------------- Evolutions (0) 0 Regions Visited (1) 200 Robots Destroyed (13) 65 Value Destroyed (270) 270 Prototype IDs (4) 80 Alien Tech Used (0) 0 Bonus (0) 0 TOTAL SCORE: 615 Bonus ------- None Cogmind --------- Core Integrity 0/250 Matter 300/300 Energy 100/100 System Corruption 0% Temperature Cool (0) Movement Hovering (66) Location -10/Materials Parts ------- > --- POWER (1) -------- Backup Power I > --- PROPULSION (2) --- Hover Unit Backup Propulsion I > --- UTILITY (2) ------ Backup Plating I Hacking Suite > --- WEAPON (2) ------- Small Laser Small Laser > --- INVENTORY (5) ---- Ion Engine Light Ion Engine Small Storage Unit Improved Terrain Scanner Grenade Launcher Peak State ------------ > --- POWER ------------ Light Ion Engine > --- PROPULSION ------- Compact Wheel Compact Wheel > --- UTILITY ---------- Small Storage Unit Improved Terrain Scanner > --- WEAPON ----------- Assault Rifle Light Assault Rifle > --- INVENTORY -------- Ion Engine [Rating: 9] Favorites ----------- Power Light Ion Engine Engine Light Ion Engine Propulsion Compact Wheel Wheel Compact Wheel Hover Unit Hover Unit Utility Small Storage Unit Device Improved Terrain Scanner Storage Small Storage Unit Processor Targeting Computer Hackware Hacking Suite Protection Light Armor Plating Weapon Small Laser Energy Gun Small Laser Ballistic Gun Assault Rifle Launcher Grenade Launcher Build | -11 -10 ------- Run | Jun Mat Slots Evolved . | . . Power . | . . Propulsion . | . . Utility . | . . Weapon . | . . Parts Attached 14 | 7 7 Power 1 | 1 . Engine 1 | 1 . Core . | . . Reactor . | . . Propulsion 3 | 2 1 Treads . | . . Leg . | . . Wheel 2 | 2 . Hover 1 | . 1 Flight . | . . Utility 5 | 2 3 Device 1 | 1 . Storage 1 | 1 . Processor 1 | . 1 Hackware 1 | . 1 Protection 1 | . 1 Artifact . | . . Weapon 5 | 2 3 Energy Gun 2 | . 2 Energy Cannon . | . . Ballistic Gun 2 | 2 . Ballistic Cannon . | . . Launcher 1 | . 1 Special Weapon . | . . Impact Weapon . | . . Slashing Weapon . | . . Piercing Weapon . | . . Special Melee Weapon . | . . Unidentified Prototypes . | . . Parts Lost 6 | . 6 Power 1 | . 1 Propulsion 2 | . 2 Utility 1 | . 1 Weapon 2 | . 2 Highest Loss Streak 6 | . 6 To Critical Strikes . | . . Average Slot Usage (%) 53 | . 53 Engine 4 | . 4 Wheel 6 | . 6 Hover 4 | . 4 Device 2 | . 2 Storage 4 | . 4 Processor 2 | . 2 Hackware 3 | . 3 Protection 3 | . 3 Energy Gun 13 | . 13 Ballistic Gun 7 | . 7 Naked Turns 12 | . 12 Heaviest Build 12 | 12 12 Greatest Support 32 | 32 32 Greatest Overweight (x) 1 | . 1 Average Overweight (x) . | . . Largest Inventory Capacity 8 | 8 8 Average Capacity 6 | 7 5 Most Carried 5 | 2 5 Average Carried 3 | . 4 Final Capacity 8 | 8 5 Final Carried 5 | 2 5 Class Distribution -------------------- 100% | Mutant Dominant Class ---------------- Mutant | -10/Materials Resources | -11 -10 ----------- Run | Jun Mat Matter Collected 455 | 308 147 Remotely . | . . Salvage Created 326 | 100 226 Parts 24 | 10 14 Haulers Intercepted . | . . Recyclers Shooed . | . . Parts Field Recycled . | . . Retrieved Matter . | . . Parts Self-Destructed . | . . Prevented . | . . Kills | -11 -10 ------- Run | Jun Mat Combat Hostiles Destroyed 9 | . 9 Guns 6 | . 6 AOE 3 | . 3 Classes Destroyed 5 | 2 3 Tunneler 2 | 2 . Recycler 1 | 1 . Operator 1 | . 1 Swarmer 3 | . 3 Grunt 6 | . 6 Best Kill Streak 3 | 3 3 Combat Bots Only 3 | . 3 Max Kills in Single Turn 1 | 1 1 Gunslinging . | . . Exploded 1 | . 1 Melee . | . . Uniques/NPCs Destroyed . | . . Combat | -11 -10 -------- Run | Jun Mat Damage Taken 761 | . 761 Core 253 | . 253 Absorbed by Shields . | . . Core Remaining (%) 100 | 100 . Volleys Fired 47 | 10 37 Largest 2 | 2 2 Hottest 80 | 40 80 Shots Fired 82 | 20 62 Gun 76 | 20 56 Cannon . | . . Launcher 6 | . 6 Special . | . . Kinetic 50 | 20 30 Thermal 26 | . 26 Explosive 6 | . 6 Electromagnetic . | . . Robot Hit Streak 21 | 4 21 Robot Miss Streak 4 | 3 4 Penetration Max . | . . Secondary Targets 1 | . 1 Max Gunslinging Chain 1 | . 1 Shots Hit Robots 50 | 10 40 Core Hits 22 | 5 17 Critical Kills . | . . Critical Parts Destroyed . | . . Critical Strikes . | . . Melee Attacks . | . . Impact . | . . Slashing . | . . Piercing . | . . Sneak Attacks . | . . Combat Hostiles . | . . Follow-up Attacks . | . . Damage Inflicted 842 | 110 732 Guns 542 | 110 432 Cannons . | . . Explosions 288 | . 288 Melee . | . . Ramming 12 | . 12 Kinetic 321 | 110 211 Thermal 221 | . 221 Explosive 288 | . 288 Electromagnetic . | . . Impact . | . . Slashing . | . . Piercing . | . . Highest Corruption . | . . Average Corruption . | . . Corruption Purged . | . . Corruption Blocked . | . . Overload Shots . | . . Overflow Damage . | . . Projectiles . | . . Explosions . | . . Melee . | . . Knockbacks . | . . Impact . | . . Kinetic . | . . Secondary . | . . Self-Inflicted Damage 6 | . 6 Shots . | . . Rammed 4 | . 4 Targets Rammed 4 | . 4 Kicked . | . . Crushed . | . . Highest Temperature 102 | . 102 Average Temperature 36 | . 36 Received Heat Transfer 282 | . 282 Siege Activations . | . . Robots Corrupted . | . . Combat Hostiles . | . . Parts Fried . | . . Impact Corruptions . | . . Robots Melted . | . . Combat Hostiles . | . . Parts Melted 1 | . 1 Heat Transferred 500 | . 500 Parts Sabotaged . | . . Parts Stolen . | . . Parts Stripped . | . . Power Chain Reactions . | . . Missiles Intercepted . | . . Alert | -11 -10 ------- Run | Jun Mat Peak Influence 233 | 15 233 Initial 9 | . 9 Average 90 | 5 112 Maximum Alert Level 1 | . 1 Low Security (%) 86 | 100 82 Level 1 13 | . 17 Level 2 . | . . Level 3 . | . . Level 4 . | . . Level 5 . | . . High Security . | . . Max Security . | . . Squads Dispatched 3 | . 3 Investigation . | . . Extermination . | . . Reinforcement 3 | . 3 Assault . | . . Garrison . | . . Intercept . | . . Searches Triggered . | . . Construction Impeded . | . . Haulers Reinforced . | . . Active Scanning Responses . | . . Cargo Convoy Interrupts . | . . Stealth | -11 -10 --------- Run | Jun Mat Distress Signals 1 | . 1 Communications Jammed . | . . Distress Signals . | . . Times Spotted 21 | . 21 Peak Tracking Total 6 | . 6 Tactical Retreats 1 | . 1 Traps | -11 -10 ------- Run | Jun Mat Traps Triggered . | . . Indirectly . | . . Trap Hack Attempts . | . . Triggered . | . . Disarmed . | . . Reprogrammed . | . . Reused . | . . Traps Extracted . | . . Installed . | . . Triggered . | . . Machines | -11 -10 ---------- Run | Jun Mat Machines Disabled . | . . Max in Single Turn . | . . Machines Repaired . | . . Machines Sabotaged . | . . Overloaded Fab Kills . | . . Hacking | -11 -10 --------- Run | Jun Mat Machines Accessed 3 | . 3 Terminals 2 | . 2 Fabricators . | . . Repair Stations 1 | . 1 Recycling Units . | . . Scanalyzers . | . . Garrison Access . | . . Total Hacks 11 | . 11 Successful 6 | . 6 Failed 5 | . 5 Catastrophic 2 | . 2 Database Lockouts . | . . Manual 2 | . 2 Terminals 9 | . 9 Fabricators . | . . Repair Stations 2 | . 2 Recycling Units . | . . Scanalyzers . | . . Garrison Access . | . . Terminal Hacks 5 | . 5 Prototype ID Bank 2 | . 2 Branch Access Points 1 | . 1 Emergency Access Points 1 | . 1 Alert Level 1 | . 1 Fabricator Hacks . | . . Repair Station Hacks 1 | . 1 Refit 1 | . 1 Recycling Unit Hacks . | . . Scanalyzer . | . . Garrison Access Hacks . | . . Unauthorized Hacks . | . . Terminals . | . . Fabricators . | . . Repair Stations . | . . Recycling Units . | . . Scanalyzers . | . . Garrison Access . | . . Data Cores Recovered . | . . Used . | . . Hacking Detections 3 | . 3 Full Trace Events 1 | . 1 Feedback Events . | . . Feedback Blocked . | . . Robot Schematics Acquired . | . . Robots Built . | . . Authchips . | . . Time . | . . Total Robot Build Rating . | . . Part Schematics Acquired . | . . Parts Built . | . . Authchips . | . . Time . | . . Total Part Build Rating . | . . Parts Repaired . | . . Time . | . . Parts Recycled . | . . Recycled Matter . | . . Retrieved Matter . | . . Retrieved Components . | . . Parts Scanalyzed . | . . Part Schematics Acquired . | . . Parts Damaged . | . . Bothacking | -11 -10 ------------ Run | Jun Mat Used RIF Installer . | . . Robots Hacked . | . . Non-combat . | . . Combat . | . . Robot Hacks Applied . | . . Relay Couplers Released . | . . Fabnet Peak Effective % . | . . Robots Rewired . | . . Allies Hacked . | . . Hacks Repelled . | . . Allies | -11 -10 -------- Run | Jun Mat Total Allies . | . . Largest Group . | . . Highest-Rated Group . | . . Highest-Rated Ally . | . . Total Orders . | . . Ally Attacks . | . . Total Damage . | . . Kills . | . . Allies Corrupted . | . . Allies Melted . | . . Intel | -11 -10 ------- Run | Jun Mat Robot Analysis Total . | . . Derelict Logs Recovered . | . . Drone Launches . | . . Drone Recoveries . | . . Exploration | -11 -10 ------------- Run | Jun Mat Turns Passed 381 | 78 303 Spaces Moved 346 | 40 306 Core 255 | 5 250 Treads . | . . Legs . | . . Wheels 61 | 35 26 Hover 30 | . 30 Flight . | . . Fastest Speed 50 | 50 50 Average Speed 61 | 93 57 Slowest Speed 100 | 100 100 Overloaded Moves . | . . Propulsion Burnouts . | . . Robots Hopped . | . . Cave-ins Triggered . | . . Exploration Rate (%) 29 | 3 55 Regions Visited 1 Branch Regions . Pre-discovered Areas . | . . Known Exits Taken . | . . Unknown Exits Taken 1 | 1 . Scrap Searched . | . . Spaces Dug . | . . Terrain Destroyed 31 | . 31 Melee . | . . Projectile . | . . AOE 31 | . 31 Terrain Rammed . | . . Walls Destroyed . | . . Machines Disabled . | . . Actions | -11 -10 --------- Run | Jun Mat Total 432 | 58 374 Wait 16 | . 16 Move 345 | 39 306 Hop . | . . Pick Up 2 | 2 . Fast Attach 14 | 7 7 Attach . | . . Detach 3 | . 3 Swap . | . . Drop 1 | . 1 Fire 47 | 10 37 Melee . | . . Ram 4 | . 4 Kick . | . . Crush . | . . Escape Stasis . | . . Rewire . | . . Trap . | . . Miscellaneous . | . . Route ------- -11/Junkyard -10/Materials (discovered 3 exits: [*Mat x2] / Min) History --------- Turn | Location | Event 27 | -11/Junkyard | Discovered new exit (range 15) 79 | -11/Junkyard | Entered Materials 193 | -10/Materials | Core integrity fell below 50% 203 | -10/Materials | Lost 6 parts (1p2n1u2w) 264 | -10/Materials | Core integrity fell below 20% 290 | -10/Materials | Discovered new exit (range 14) 300 | -10/Materials | Build established: Mutant 318 | -10/Materials | Identified exit to Mines 343 | -10/Materials | Discovered new exit (range 16) 382 | -10/Materials | Destroyed by S-10 Pest with Light Assault Rifle Last Messages --------------- Found 1 branch access point: (11,62) Mines Map updated. >>Prototypes Downloading prototype IDs... Imp. EM Shotgun Hvy. Ion Engine 00320_ Connecting with Terminal... 00322_ K-01 Serf collects debris. 00343_ EXIT=FOUND 00350_ K-01 Serf collects debris. 00352_ Acquired 37 matter. 00362_ Connecting with Repair Station... >>Refit Scanning configuration... Attaching: Backup Power I x1 Backup Propulsion I x1 Backup Plating I x1 00382_ Slammed into U-05 Engineer. Map ----- +----------------------------------------------------+ | | | | | | | | | | | | | | | | | | | | | | | ?????????????????????????????????????????? | | ?##??????###########????########?????????? | | # ?????# !#????# #?????????? | | #"""?????# """ || #????# """ #?????????? | | #""" ????# """ || #????# """ #?????????? | | #""" ?#### """ || ###### """ %#####?????? | | #""" # # ## + # #?????? | | #""" # # " " + ## """ # < #?????? | | # + + "R" ## ## """ # #?????? | | # # # """ ## ## """ + #?????? | | ?###### ############ ## # #?????? | | ?????# ########## = # """ # #?????? | | ?????# # """ # #?##### | | ?????# % # """ [# #?""" | | ?????# #######@## # # # """ | | ???####+##### u ## ######### # """ | | ??# ## ## #???##! + | | ??# """ ## s ## #???#! # ! | | ??# """ ## ## #???#! # | | ??# """ ## // ## #???#! #?##### | | ??# ## /ss #? ????#! #?????? | | ??# """ #########? ????##! #?????? | | ??# """ #????????? ?????#### #?????? | | ??# ???? #???????????????????# ####### | | ???????? #?????##########????# | | ????????####?????# ##### | | ????????????????????"" """ + | | ????????????????????"" """ # ############ | | ????????????????????"" """ # #??????????# | | ???????????????????? ?+ #??????????# | | ???????????????????? ?# #??????????# | | ??????????????????? ??# #??????????# | | ??????????????????? ??# ??????????# | | ???????????????????#####???# ??????????# | | ???????????????????????????# ??????????# | | ???????????????????????????# #?????????# | | ???????????????????????????# #?????????# | | ???????????????????????????# #?????????# | | ???????????????????????????# #?????????# | +----------------------------------------------------+ Best States ------------- Heat Dissipation 25 Energy Generation 10 Energy Capacity 125 Matter Stores 300 Matter Capacity 300 Sight Range 16 Terrain Scan Range 16 Terrain Scan Density 10 Armor Coverage 150 Evasion (%) 51 Targeting Accuracy 5 Offensive Hacking 10 Item Schematics ----------------- None Robot Schematics ------------------ None Fabricated ------------ Nothing Alien Tech Used ----------------- None Achievements -------------- None Challenges ------------ None Game ------ Seed ProcessingTransmissionField Manual? 0 Play Time 00:08:47 Cumulative 50.7 hours Start 2024.01.12 @ 15:05:00 End 2024.01.12 @ 15:11:57 Sessions 1 Manual Loads 0 Difficulty Rogue Special Mode None Game No. 27 Rogue 27 Adventurer 0 Explorer 0 Win Type - Total 0 Types 0/0/0/0/0/0/0/0/0 Lore% 49 Gallery% 47 Achievement% 38 Wizard Run 0 Options --------- ASCII 0 Keyboard 1 Movement Arrows Keybinds 0 Fullscreen 1 Font 12/Proggy Map View 83x54 Tactical HUD 1 Map Filters NONE Filters NONE Steam 0 RUN: e7743f3b-301b-4251-8d3b-553bebd1a9b2